fUST/lending_fUST_20250723
["ID","MTS","AMOUNT","RATE_DAILY","PERIOD"]
[374248618,1753254665242,-460.0,0.00020547,2]
[374248619,1753254665253,-460.0,0.00020547,2]
[374248620,1753254665262,-460.0,0.00020547,2]
[374248621,1753254665272,-460.0,0.00020547,2]
[374248622,1753254665281,-460.0,0.00020547,2]
[374248623,1753254665290,-460.0,0.00020547,2]
[374248624,1753254665299,-460.0,0.00020547,2]
[374248625,1753254665308,-460.0,0.00020547,2]
[374248626,1753254665318,-460.0,0.00020547,2]
[374248627,1753254665327,-4764.83,0.00020547,2]
[374248628,1753254665337,-460.0,0.00020547,2]
[374248629,1753254665346,-460.0,0.00020547,2]
[374248630,1753254665356,-1890.16,0.00020547,2]
[374248631,1753254665365,-460.0,0.00020547,2]
[374248632,1753254665377,-460.0,0.00020547,2]
[374248633,1753254665387,-460.0,0.00020547,2]
[374248634,1753254665396,-473.02,0.00020547,2]
[374248635,1753254665405,-795.21,0.00020547,2]
[374248636,1753254665414,-460.0,0.00020547,2]
[374248637,1753254665424,-1778.62,0.00020547,2]
[374248638,1753254665433,-500.0,0.00020548,2]
[374248639,1753254665443,-1299.77258459,0.00020568,2]
[374248640,1753254665452,-1500.0,0.00020568,2]
[374248641,1753254665461,-1500.0,0.00020568,2]
[374248642,1753254665473,-2798.52,0.00020612,3]
[374248643,1753254665483,-476.696448,0.0002062,3]
[374248644,1753254665495,-12622.36869388,0.0002062,3]
[374248645,1753254665504,-160.0,0.0002062,3]
[374248646,1753254665513,-7435.36803861,0.00020621,2]
[374248647,1753254665523,-1095.38,0.00020626,2]
[374248648,1753254665532,-498.315,0.0002067,2]
[374248649,1753254665541,-178.56887845,0.0002067,2]
[374248650,1753254665551,-429.674968,0.00020685,2]
[374248651,1753254665560,-429.674968,0.00020685,2]
[374248652,1753254665572,-151.0,0.000207,3]
[374248653,1753254665583,-2000.0,0.00020708,2]
[374248654,1753254665592,-465.94554923,0.00020721,2]
[374248655,1753254665601,-460.0,0.00020721,2]
[374248656,1753254665611,-577.66831075,0.00020721,2]
[374248657,1753254665620,-460.0,0.00020721,2]
[374248658,1753254665630,-460.0,0.00020721,2]
[374248659,1753254665639,-460.0,0.00020721,2]
[374248660,1753254665649,-533.8,0.00020721,2]
[374248661,1753254665658,-460.0,0.00020721,2]
[374248662,1753254665668,-460.0,0.00020721,2]
[374248663,1753254665678,-460.0,0.00020721,2]
[374248664,1753254665688,-1496.55,0.00020721,2]
[374248665,1753254665700,-693.51,0.00020721,2]
[374248666,1753254665710,-464.55347186,0.00020721,2]
[374248667,1753254665722,-460.0,0.00020721,2]
[374248668,1753254665734,-500.0,0.00020727,2]
[374248669,1753254665748,-2092.37,0.00020727,2]
[374248670,1753254665757,-1369.90225841,0.00020728,3]
[374248671,1753254665766,-2000.0,0.00020818,2]
[374248672,1753254665776,-1871.85,0.00020821,2]
[374248673,1753254665785,-460.0,0.00020821,2]
[374248674,1753254665794,-460.0,0.00020821,2]
[374248675,1753254665806,-460.0,0.00020821,2]
[374248676,1753254665815,-460.0,0.00020821,2]
[374248677,1753254665824,-2065.75,0.00020821,2]
[374248678,1753254665834,-465.77190469,0.00020821,2]
[374248679,1753254665843,-460.0,0.00020821,2]
[374248680,1753254665852,-460.0,0.00020821,2]
[374248681,1753254665861,-460.0,0.00020821,2]
[374248682,1753254665870,-460.0,0.00020821,2]
[374248683,1753254665879,-460.0,0.00020821,2]
[374248684,1753254665889,-578.88555706,0.00020821,2]
[374248685,1753254665898,-460.0,0.00020821,2]
[374248686,1753254665908,-460.0,0.00020821,2]
[374248687,1753254665917,-460.0,0.00020821,2]
[374248688,1753254665926,-460.0,0.00020821,2]
[374248689,1753254665935,-607.19406378,0.00020821,2]
[374248690,1753254665945,-2886.62,0.00020821,2]
[374248691,1753254665955,-460.0,0.00020821,2]
[374248692,1753254665967,-460.0,0.00020821,2]
[374248693,1753254665978,-460.0,0.00020821,2]
[374248694,1753254665989,-460.0,0.00020821,2]
[374248695,1753254665999,-460.0,0.00020821,2]
[374248696,1753254666008,-460.0,0.00020821,2]
[374248697,1753254666018,-460.0,0.00020821,2]
[374248698,1753254666027,-460.0,0.00020821,2]
[374248699,1753254666036,-460.0,0.00020821,2]
[374248700,1753254666045,-544.69,0.00020821,2]
[374248701,1753254666055,-460.0,0.00020821,2]
[374248702,1753254666156,-460.0,0.00020821,2]
[374248703,1753254666166,-151.0,0.00020821,2]
[374248704,1753254666175,-460.0,0.00020821,2]
[374248705,1753254666186,-151.0,0.00020821,2]
[374248706,1753254666195,-1538.75,0.00020821,2]
[374248707,1753254666205,-460.0,0.00020821,2]
[374248708,1753254666214,-460.0,0.00020821,2]
[374248709,1753254666224,-530.6376449,0.00020821,2]
[374248710,1753254666234,-151.0,0.00020821,2]
[374248711,1753254666243,-151.0,0.00020821,2]
[374248712,1753254666253,-151.0,0.00020821,2]
[374248713,1753254666263,-460.0,0.00020821,2]
[374248714,1753254666272,-151.0,0.00020821,2]
[374248715,1753254666282,-460.0,0.00020821,2]
[374248716,1753254666291,-151.0,0.00020821,2]
[374248717,1753254666301,-550.1,0.00020821,2]
[374248718,1753254666311,-460.0,0.00020821,2]
[374248719,1753254666320,-151.0,0.00020821,2]
[374248720,1753254666330,-369.90025261,0.00020821,2]
[374248721,1753254666339,-151.0,0.00020821,2]
[374248722,1753254666348,-154.335394,0.00020821,2]
[374248723,1753254666358,-322.21031188,0.00020821,2]
[374248724,1753254666375,-460.0,0.00020821,2]
[374248725,1753254666385,-460.0,0.00020821,2]
[374248726,1753254666397,-460.0,0.00020821,2]
[374248727,1753254666407,-460.0,0.00020821,2]
[374248728,1753254666416,-460.0,0.00020821,2]
[374248729,1753254666427,-460.0,0.00020821,2]
[374248730,1753254666438,-460.0,0.00020821,2]
[374248731,1753254666449,-460.0,0.00020821,2]
[374248732,1753254666460,-460.0,0.00020821,2]
[374248733,1753254666470,-279.20976402,0.00020821,2]
[374248734,1753254666481,-460.0,0.00020821,2]
[374248735,1753254666492,-460.0,0.00020821,2]
[374248736,1753254666503,-599.79484754,0.00020821,2]
[374248737,1753254666513,-465.19338208,0.00020821,2]
[374248738,1753254666522,-460.0,0.00020821,2]
[374248739,1753254666531,-1039.56,0.00020821,2]
[374248740,1753254666540,-460.0,0.00020821,2]
[374248741,1753254666550,-151.0,0.00020821,2]
[374248742,1753254666560,-460.0,0.00020821,2]
[374248743,1753254666570,-460.0,0.00020821,2]
[374248744,1753254666579,-460.0,0.00020821,2]
[374248745,1753254666589,-460.0,0.00020821,2]
[374248746,1753254666599,-460.0,0.00020821,2]
[374248747,1753254666608,-460.0,0.00020821,2]
[374248748,1753254666618,-358.5,0.00020821,2]
[374248749,1753254666627,-460.0,0.00020821,2]
[374248750,1753254666636,-460.0,0.00020821,2]
[374248751,1753254666646,-460.0,0.00020821,2]
[374248752,1753254666656,-460.0,0.00020821,2]
[374248753,1753254666665,-460.0,0.00020821,2]
[374248754,1753254666675,-460.0,0.00020821,2]
[374248755,1753254666684,-460.0,0.00020821,2]
[374248756,1753254666694,-218.45602259,0.00020821,2]
[374248757,1753254666703,-460.0,0.00020821,2]
[374248758,1753254666713,-460.0,0.00020821,2]
[374248759,1753254666722,-344.29435328,0.00020821,2]
[374248760,1753254666732,-460.0,0.00020821,2]
[374248761,1753254666742,-460.0,0.00020821,2]
[374248762,1753254666752,-553.5,0.00020821,2]
[374248763,1753254666762,-460.0,0.00020821,2]
[374248764,1753254666772,-460.0,0.00020821,2]
[374248765,1753254666781,-2389.46,0.00020821,2]
[374248766,1753254666791,-460.0,0.00020821,2]
[374248767,1753254666804,-466.33656589,0.00020821,2]
[374248768,1753254666813,-468.73,0.00020821,2]
[374248769,1753254666822,-460.0,0.00020821,2]
[374248770,1753254666832,-460.0,0.00020821,2]
[374248771,1753254666843,-460.0,0.00020821,2]
[374248772,1753254666853,-460.0,0.00020821,2]
[374248773,1753254666863,-460.0,0.00020821,2]
[374248774,1753254666873,-460.0,0.00020821,2]
[374248775,1753254666883,-460.0,0.00020821,2]
[374248776,1753254666893,-460.0,0.00020821,2]
[374248777,1753254666903,-476.47201731,0.00020821,2]
[374248778,1753254666912,-460.0,0.00020821,2]
[374248779,1753254666922,-460.0,0.00020821,2]
[374248780,1753254666932,-1791.55,0.00020821,2]
[374248781,1753254666942,-460.0,0.00020821,2]
[374248782,1753254666951,-2491.45,0.00020821,2]
[374248783,1753254666961,-460.0,0.00020821,2]
[374248784,1753254666970,-460.0,0.00020821,2]
[374248785,1753254666980,-460.0,0.00020821,2]
[374248786,1753254666990,-460.0,0.00020821,2]
[374248787,1753254667001,-460.0,0.00020821,2]
[374248788,1753254667010,-460.0,0.00020821,2]
[374248789,1753254667020,-151.0,0.00020821,2]
[374248790,1753254667030,-1677.76,0.00020821,2]
[374248791,1753254667040,-460.0,0.00020821,2]
[374248792,1753254667049,-460.0,0.00020821,2]
[374248793,1753254667058,-151.0,0.00020821,2]
[374248794,1753254667068,-3937.54,0.00020821,2]
[374248795,1753254667078,-460.0,0.00020821,2]
[374248796,1753254667088,-460.0,0.00020821,2]
[374248797,1753254667097,-460.0,0.00020821,2]
[374248798,1753254667107,-460.0,0.00020821,2]
[374248799,1753254667116,-514.35,0.00020821,2]
[374248800,1753254667126,-386.86954409,0.00020821,2]
[374248801,1753254667136,-155.37171779,0.00020821,2]
[374248802,1753254667145,-460.0,0.00020821,2]
[374248803,1753254667154,-460.0,0.00020821,2]
[374248804,1753254667164,-159.13280513,0.00020821,2]
[374248805,1753254667174,-460.0,0.00020821,2]
[374248806,1753254667184,-460.0,0.00020821,2]
[374248807,1753254667193,-460.0,0.00020821,2]
[374248808,1753254667203,-460.0,0.00020821,2]
[374248809,1753254667213,-460.0,0.00020821,2]
[374248810,1753254667224,-460.0,0.00020821,2]
[374248811,1753254667239,-952.29,0.00020821,2]
[374248812,1753254667249,-151.0,0.00020821,2]
[374248813,1753254667259,-151.0,0.00020821,2]
[374248814,1753254667268,-460.0,0.00020821,2]
[374248815,1753254667277,-460.0,0.00020821,2]
[374248816,1753254667287,-460.0,0.00020821,2]
[374248817,1753254667296,-460.0,0.00020821,2]
[374248818,1753254667306,-460.0,0.00020821,2]
[374248819,1753254667315,-1984.23,0.00020821,2]
[374248820,1753254667324,-460.0,0.00020821,2]
[374248821,1753254667333,-464.99007894,0.00020821,2]
[374248822,1753254667342,-151.0,0.00020821,2]
[374248823,1753254667351,-460.0,0.00020821,2]
[374248824,1753254667361,-460.0,0.00020821,2]
[374248825,1753254667371,-460.0,0.00020821,2]
[374248826,1753254667380,-460.0,0.00020821,2]
[374248827,1753254667390,-460.0,0.00020821,2]
[374248828,1753254667400,-460.0,0.00020821,2]
[374248829,1753254667409,-460.0,0.00020821,2]
[374248830,1753254667418,-460.0,0.00020821,2]
[374248831,1753254667428,-460.0,0.00020821,2]
[374248832,1753254667437,-4764.83,0.00020821,2]
[374248833,1753254667446,-460.0,0.00020821,2]
[374248834,1753254667455,-151.0,0.00020821,2]
[374248835,1753254667465,-460.0,0.00020821,2]
[374248836,1753254667475,-1890.16,0.00020821,2]
[374248837,1753254667484,-460.0,0.00020821,2]
[374248838,1753254667493,-460.0,0.00020821,2]
[374248839,1753254667504,-460.0,0.00020821,2]
[374248840,1753254667513,-473.02,0.00020821,2]
[374248841,1753254667522,-795.21,0.00020821,2]
[374248842,1753254667532,-460.0,0.00020821,2]
[374248843,1753254667540,-151.0,0.00020821,2]
[374248844,1753254667550,-1778.62,0.00020821,2]
[374248845,1753254667559,-505.1378997,0.00020822,2]
[374248846,1753254667568,-500.0,0.00020868,2]
[374248847,1753254667578,-2092.37,0.00020868,2]
[374248848,1753254667587,-519.33640727,0.00020868,2]
[374248849,1753254667596,-500.0,0.00020868,2]
[374248850,1753254667606,-377.62175577,0.00020868,2]
[374248851,1753254667615,-1500.0,0.00020868,2]
[374248852,1753254667624,-1500.0,0.00020868,2]
[374248853,1753254667636,-500.0,0.00020868,2]
[374248854,1753254667646,-570.81458004,0.00020876,2]
[374248855,1753254667655,-2008.39549157,0.00020916,2]
[374248856,1753254667664,-2000.0,0.00020916,2]
[374248857,1753254667673,-1369.90225841,0.00020934,4]
[374248858,1753254667683,-151.0,0.00020995,2]
[374248859,1753254667692,-151.0,0.00020995,2]
[374248860,1753254667701,-151.0,0.00020995,2]
[374248861,1753254667710,-358.944216,0.00020995,2]
[374248862,1753254667720,-358.944216,0.00020995,2]
[374248863,1753254667729,-171.725964,0.00020995,2]
[374248864,1753254667739,-460.0,0.00020995,2]
[374248865,1753254667749,-151.0,0.00020995,2]
[374248866,1753254667758,-460.0,0.00020995,2]
[374248867,1753254667768,-533.8,0.00020995,2]
[374248868,1753254667777,-151.0,0.00020995,2]
[374248869,1753254667786,-460.0,0.00020995,2]
[374248870,1753254667796,-460.0,0.00020995,2]
[374248871,1753254667808,-460.0,0.00020995,2]
[374248872,1753254667818,-1496.55,0.00020995,2]
[374248873,1753254667827,-693.51,0.00020995,2]
[374248874,1753254667836,-460.0,0.00020995,2]
[374248875,1753254667846,-2000.0,0.00020996,3]
[374248876,1753254667855,-2000.0,0.00021012,3]
[374248877,1753254667865,-151.0,0.0002105,2]
[374248878,1753254667874,-289.12487,0.0002105,2]
[374248879,1753254667884,-188.847154,0.0002105,2]
[374248880,1753254667894,-188.847154,0.0002105,2]
[374248881,1753254667903,-152.45592811,0.0002105,2]
[374248882,1753254667913,-3801.642,0.0002105,2]
[374248883,1753254667922,-151.0,0.0002105,2]
[374248884,1753254667931,-151.0,0.0002105,2]
[374248885,1753254667940,-151.0,0.0002105,2]
[374248886,1753254667950,-151.0,0.0002105,2]
[374248887,1753254667959,-151.0,0.0002105,2]
[374248888,1753254667968,-151.0,0.0002105,2]
[374248889,1753254667978,-151.0,0.0002105,2]
[374248890,1753254667987,-151.0,0.0002105,2]
[374248891,1753254667997,-151.0,0.0002105,2]
[374248892,1753254668007,-151.61683541,0.0002105,2]
[374248893,1753254668017,-151.0,0.0002105,2]
[374248894,1753254668026,-151.0,0.0002105,2]
[374248895,1753254668035,-151.0,0.0002105,2]
[374248896,1753254668044,-151.0,0.0002105,2]
[374248897,1753254668053,-151.0,0.0002105,2]
[374248898,1753254668063,-151.0,0.0002105,2]
[374248899,1753254668072,-215.0738,0.0002105,2]
[374248900,1753254668081,-152.71936777,0.0002105,2]
[374248901,1753254668091,-151.0,0.0002105,2]
[374248902,1753254668101,-151.0,0.0002105,2]
[374248903,1753254668110,-151.0,0.0002105,2]
[374248904,1753254668119,-151.0,0.0002105,2]
[374248905,1753254668128,-151.0,0.0002105,2]
[374248906,1753254668138,-151.0,0.0002105,2]
[374248907,1753254668147,-151.0,0.0002105,2]
[374248908,1753254668156,-151.0,0.0002105,2]
[374248909,1753254668165,-151.0,0.0002105,2]
[374248910,1753254668174,-151.0,0.0002105,2]
[374248911,1753254668183,-151.98065924,0.0002105,2]
[374248912,1753254668192,-151.0,0.0002105,2]
[374248913,1753254668201,-151.0,0.0002105,2]
[374248914,1753254668211,-151.0,0.0002105,2]
[374248915,1753254668220,-151.0,0.0002105,2]
[374248916,1753254668230,-151.0,0.0002105,2]
[374248917,1753254668248,-151.0,0.0002105,2]
[374248918,1753254668258,-151.0,0.0002105,2]
[374248919,1753254668267,-25000.0,0.0002105,2]
[374248920,1753254668277,-13232.14853917,0.0002105,2]
[374248921,1753254668287,-360.0,0.00021091,2]
[374248922,1753254668296,-492.15065347,0.00021095,2]
[374248923,1753254668305,-1871.85,0.00021095,2]
[374248924,1753254668314,-460.0,0.00021095,2]
[374248925,1753254668323,-460.0,0.00021095,2]
[374248926,1753254668333,-460.0,0.00021095,2]
[374248927,1753254668342,-460.0,0.00021095,2]
[374248928,1753254668351,-2065.75,0.00021095,2]
[374248929,1753254668361,-460.0,0.00021095,2]
[374248930,1753254668370,-460.0,0.00021095,2]
[374248931,1753254668379,-460.0,0.00021095,2]
[374248932,1753254668388,-584.91,0.00021095,2]
[374248933,1753254668481,-460.0,0.00021095,2]
[374248934,1753254668501,-460.0,0.00021095,2]
[374248935,1753254668510,-460.0,0.00021095,2]
[374248936,1753254668520,-460.0,0.00021095,2]
[374248937,1753254668529,-460.0,0.00021095,2]
[374248938,1753254668539,-2886.62,0.00021095,2]
[374248939,1753254668548,-460.0,0.00021095,2]
[374248940,1753254668557,-460.0,0.00021095,2]
[374248941,1753254668566,-460.0,0.00021095,2]
[374248942,1753254668576,-460.0,0.00021095,2]
[374248943,1753254668585,-460.0,0.00021095,2]
[374248944,1753254668595,-460.0,0.00021095,2]
[374248945,1753254668606,-460.0,0.00021095,2]
[374248946,1753254668615,-544.69,0.00021095,2]
[374248947,1753254668624,-460.0,0.00021095,2]
[374248948,1753254668634,-292.38,0.00021095,2]
[374248949,1753254668643,-1538.75,0.00021095,2]
[374248950,1753254668652,-465.30163819,0.00021095,2]
[374248951,1753254668661,-460.0,0.00021095,2]
[374248952,1753254668671,-460.0,0.00021095,2]
[374248953,1753254668680,-460.0,0.00021095,2]
[374248954,1753254668689,-460.0,0.00021095,2]
[374248955,1753254668699,-460.0,0.00021095,2]
[374248956,1753254668709,-460.0,0.00021095,2]
[374248957,1753254668719,-460.0,0.00021095,2]
[374248958,1753254668729,-464.44031236,0.00021095,2]
[374248959,1753254668739,-460.0,0.00021095,2]
[374248960,1753254668752,-460.0,0.00021095,2]
[374248961,1753254668761,-460.0,0.00021095,2]
[374248962,1753254668770,-460.0,0.00021095,2]
[374248963,1753254668780,-460.0,0.00021095,2]
[374248964,1753254668790,-151.0,0.00021095,2]
[374248965,1753254668804,-151.0,0.00021095,2]
[374248966,1753254668813,-1039.56,0.00021095,2]
[374248967,1753254668824,-460.0,0.00021095,2]
[374248968,1753254668835,-439.98647299,0.00021095,2]
[374248969,1753254668846,-460.0,0.00021095,2]
[374248970,1753254668856,-460.0,0.00021095,2]
[374248971,1753254668865,-460.0,0.00021095,2]
[374248972,1753254668875,-460.0,0.00021095,2]
[374248973,1753254668885,-245.84,0.00021095,2]
[374248974,1753254668895,-460.0,0.00021095,2]
[374248975,1753254668904,-460.0,0.00021095,2]
[374248976,1753254668914,-460.0,0.00021095,2]
[374248977,1753254668923,-460.0,0.00021095,2]
[374248978,1753254668933,-460.0,0.00021095,2]
[374248979,1753254668942,-460.0,0.00021095,2]
[374248980,1753254668952,-206.66,0.00021095,2]
[374248981,1753254668961,-553.5,0.00021095,2]
[374248982,1753254668970,-460.0,0.00021095,2]
[374248983,1753254668980,-294.15,0.00021095,2]
[374248984,1753254668989,-2389.46,0.00021095,2]
[374248985,1753254668999,-460.0,0.00021095,2]
[374248986,1753254669009,-468.73,0.00021095,2]
[374248987,1753254669018,-460.0,0.00021095,2]
[374248988,1753254669028,-460.0,0.00021095,2]
[374248989,1753254669039,-151.0,0.00021095,2]
[374248990,1753254669048,-460.0,0.00021095,2]
[374248991,1753254669058,-460.0,0.00021095,2]
[374248992,1753254669067,-151.0,0.00021095,2]
[374248993,1753254669077,-460.0,0.00021095,2]
[374248994,1753254669087,-460.0,0.00021095,2]
[374248995,1753254669097,-460.0,0.00021095,2]
[374248996,1753254669107,-460.0,0.00021095,2]
[374248997,1753254669116,-1791.55,0.00021095,2]
[374248998,1753254669127,-460.0,0.00021095,2]
[374248999,1753254669137,-2491.45,0.00021095,2]
[374249000,1753254669147,-456.13171285,0.00021095,2]
[374249001,1753254669156,-460.0,0.00021095,2]
[374249002,1753254669167,-460.0,0.00021095,2]
[374249003,1753254669178,-460.0,0.00021095,2]
[374249004,1753254669187,-460.0,0.00021095,2]
[374249005,1753254669197,-151.0,0.00021095,2]
[374249006,1753254669207,-1677.76,0.00021095,2]
[374249007,1753254669218,-460.0,0.00021095,2]
[374249008,1753254669228,-460.0,0.00021095,2]
[374249009,1753254669237,-3937.54,0.00021095,2]
[374249010,1753254669247,-460.0,0.00021095,2]
[374249011,1753254669257,-460.0,0.00021095,2]
[374249012,1753254669266,-460.0,0.00021095,2]
[374249013,1753254669276,-514.35,0.00021095,2]
[374249014,1753254669286,-460.0,0.00021095,2]
[374249015,1753254669296,-460.0,0.00021095,2]
[374249016,1753254669305,-460.0,0.00021095,2]
[374249017,1753254669315,-460.0,0.00021095,2]
[374249018,1753254669324,-460.0,0.00021095,2]
[374249019,1753254669334,-460.0,0.00021095,2]
[374249020,1753254669344,-460.0,0.00021095,2]
[374249021,1753254669354,-952.29,0.00021095,2]
[374249022,1753254669365,-460.0,0.00021095,2]
[374249023,1753254669375,-460.0,0.00021095,2]
[374249024,1753254669386,-460.0,0.00021095,2]
[374249025,1753254669396,-460.0,0.00021095,2]
[374249026,1753254669407,-460.0,0.00021095,2]
[374249027,1753254669418,-1984.23,0.00021095,2]
[374249028,1753254669428,-460.0,0.00021095,2]
[374249029,1753254669440,-460.0,0.00021095,2]
[374249030,1753254669450,-460.0,0.00021095,2]
[374249031,1753254669460,-460.0,0.00021095,2]
[374249032,1753254669470,-460.0,0.00021095,2]
[374249033,1753254669479,-460.0,0.00021095,2]
[374249034,1753254669489,-460.0,0.00021095,2]
[374249035,1753254669499,-460.0,0.00021095,2]
[374249036,1753254669509,-460.0,0.00021095,2]
[374249037,1753254669519,-460.0,0.00021095,2]
[374249038,1753254669528,-4764.83,0.00021095,2]
[374249039,1753254669538,-460.0,0.00021095,2]
[374249040,1753254669547,-460.0,0.00021095,2]
[374249041,1753254669557,-151.0,0.00021095,2]
[374249042,1753254669566,-1890.16,0.00021095,2]
[374249043,1753254669576,-460.0,0.00021095,2]
[374249044,1753254669585,-460.0,0.00021095,2]
[374249045,1753254669595,-460.62184011,0.00021095,2]
[374249046,1753254669604,-473.02,0.00021095,2]
[374249047,1753254669613,-795.21,0.00021095,2]
[374249048,1753254669623,-460.0,0.00021095,2]
[374249049,1753254669633,-1778.62,0.00021095,2]
[374249050,1753254669644,-1615.91207576,0.00021105,2]
[374249051,1753254669653,-507.61580737,0.00021116,2]
[374249052,1753254669663,-231.27315472,0.00021116,2]
[374249053,1753254669672,-1369.90225841,0.00021141,4]
[374249054,1753254669681,-500.0,0.00021142,2]
[374249055,1753254669691,-2092.37,0.00021142,2]
[374249056,1753254669701,-840.06856235,0.00021147,2]
[374249057,1753254669710,-526.15909479,0.00021147,2]
[374249058,1753254669719,-476.696448,0.00021147,2]
[374249059,1753254669728,-215.84326551,0.00021147,2]
[374249060,1753254669738,-160.0,0.00021147,2]
[374249061,1753254669747,-12622.36869388,0.00021147,2]
[374249062,1753254669758,-160.0,0.00021147,2]
[374249063,1753254669767,-214.67886746,0.00021147,2]
[374249064,1753254669777,-2000.0,0.00021189,3]
[374249065,1753254669786,-151.0,0.000212,4]
[374249066,1753254669795,-160.0,0.00021222,2]
[374249067,1753254669808,-160.0,0.00021222,2]
[374249068,1753254669817,-160.0,0.00021222,2]
[374249069,1753254669827,-160.0,0.00021222,2]
[374249070,1753254669836,-160.0,0.00021222,2]
[374249071,1753254669845,-231.11583447,0.00021222,2]
[374249072,1753254669854,-160.0,0.00021222,2]
[374249073,1753254669863,-160.0,0.00021222,2]
[374249074,1753254669873,-160.0,0.00021222,2]
[374249075,1753254669882,-2000.0,0.00021244,3]
[374249076,1753254669891,-160.31443999,0.00021268,2]
[374249077,1753254669901,-151.0,0.00021269,2]
[374249078,1753254669910,-152.090328,0.00021269,2]
[374249079,1753254669919,-467.5887714,0.00021269,2]
[374249080,1753254669928,-460.0,0.00021269,2]
[374249081,1753254669937,-533.8,0.00021269,2]
[374249082,1753254669946,-460.0,0.00021269,2]
[374249083,1753254669956,-460.0,0.00021269,2]
[374249084,1753254669965,-460.0,0.00021269,2]
[374249085,1753254669974,-1496.55,0.00021269,2]
[374249086,1753254669984,-251.052736,0.00021269,2]
[374249087,1753254669993,-251.052736,0.00021269,2]
[374249088,1753254670002,-693.51,0.00021269,2]
[374249089,1753254670012,-460.0,0.00021269,2]
[374249090,1753254670021,-160.0,0.000213,3]
[374249091,1753254670030,-1369.90225841,0.00021348,5]
[374249092,1753254670039,-500.0,0.00021368,2]
[374249093,1753254670048,-2092.37,0.00021368,2]
[374249094,1753254670058,-1871.85,0.00021369,2]
[374249095,1753254670067,-460.0,0.00021369,2]
[374249096,1753254670076,-460.0,0.00021369,2]
[374249097,1753254670085,-216.36,0.00021369,2]
[374249098,1753254670095,-2065.75,0.00021369,2]
[374249099,1753254670104,-297.63091589,0.00021369,2]
[374249100,1753254670113,-460.0,0.00021369,2]
[374249101,1753254670122,-460.0,0.00021369,2]
[374249102,1753254670131,-460.0,0.00021369,2]
[374249103,1753254670141,-274.02,0.00021369,2]
[374249104,1753254670151,-460.0,0.00021369,2]
[374249105,1753254670160,-479.18790228,0.00021369,2]
[374249106,1753254670169,-460.0,0.00021369,2]
[374249107,1753254670178,-2886.62,0.00021369,2]
[374249108,1753254670187,-603.22,0.00021369,2]
[374249109,1753254670197,-469.51564883,0.00021369,2]
[374249110,1753254670206,-479.52352393,0.00021369,2]
[374249111,1753254670215,-460.0,0.00021369,2]
[374249112,1753254670224,-328.97704596,0.00021369,2]
[374249113,1753254670234,-460.0,0.00021369,2]
[374249114,1753254670243,-466.47559134,0.00021369,2]
[374249115,1753254670253,-544.69,0.00021369,2]
[374249116,1753254670262,-460.0,0.00021369,2]
[374249117,1753254670271,-1538.75,0.00021369,2]